Cogmind - Beta 13 @@@ ROGUE MODE // 2024.04.08 @ 19:01:17 Player: Calliope Result: Destroyed by RK-Q0R(R) with Subdweller Beam Cannon Performance ------------- Evolutions (0) 0 Regions Visited (2) 400 Robots Destroyed (19) 95 Value Destroyed (395) 395 Prototype IDs (2) 40 Alien Tech Used (0) 0 Bonus (0) 0 TOTAL SCORE: 930 Bonus ------- None Cogmind --------- Core Integrity 0/250 Matter 282/300 Energy 100/100 System Corruption 0% Temperature Cool (9) Movement Core (350) Ox6 Location -10/Subcaves Parts ------- > --- POWER (1) -------- (None) > --- PROPULSION (2) --- (None) > --- UTILITY (2) ------ Large Storage Unit Visual Processing Unit > --- WEAPON (2) ------- (None) > --- INVENTORY (15) --- Ion Engine Light Ion Engine Aluminum Leg Aluminum Leg Signal Interpreter Targeting Computer Medium Laser Welding Torch Peak State ------------ > --- POWER ------------ Light Ion Engine > --- PROPULSION ------- Light Treads Light Treads > --- UTILITY ---------- Huge Storage Unit Visual Processing Unit > --- WEAPON ----------- Assault Rifle Light Assault Rifle > --- INVENTORY -------- Light Ion Engine Aluminum Leg Aluminum Leg Aluminum Leg Aluminum Leg Medium Laser [Rating: 8] Favorites ----------- Power Light Ion Engine Engine Light Ion Engine Propulsion Light Treads Treads Light Treads Utility Visual Processing Unit Storage Huge Storage Unit Processor Visual Processing Unit Weapon Light Assault Rifle Energy Gun Medium Laser Ballistic Gun Light Assault Rifle Launcher Grenade Launcher Special Weapon Welding Torch Build | -11 -10 -10 ------- Run | Yrd Mat Sub Slots Evolved . | . . . Power . | . . . Propulsion . | . . . Utility . | . . . Weapon . | . . . Parts Attached 21 | 6 11 4 Power 3 | 1 2 . Engine 3 | 1 2 . Core . | . . . Reactor . | . . . Propulsion 3 | 2 1 . Treads 3 | 2 1 . Leg . | . . . Wheel . | . . . Hover . | . . . Flight . | . . . Utility 5 | 1 4 . Device . | . . . Storage 4 | 1 3 . Processor 1 | . 1 . Hackware . | . . . Protection . | . . . Artifact . | . . . Weapon 10 | 2 4 4 Energy Gun 3 | 1 1 1 Energy Cannon . | . . . Ballistic Gun 4 | 1 2 1 Ballistic Cannon . | . . . Launcher 2 | . 1 1 Special Weapon 1 | . . 1 Impact Weapon . | . . . Slashing Weapon . | . . . Piercing Weapon . | . . . Special Melee Weapon . | . . . Unidentified Prototypes . | . . . Parts Lost 6 | . 1 5 Power 2 | . 1 1 Propulsion 2 | . . 2 Utility . | . . . Weapon 2 | . . 2 Highest Loss Streak 3 | . 1 3 To Critical Strikes 1 | . . 1 Average Slot Usage (%) 92 | . 93 86 Engine 13 | . 13 13 Treads 27 | . 27 21 Storage 14 | . 14 14 Processor 8 | . 7 14 Energy Gun 6 | . 6 . Ballistic Gun 17 | . 17 12 Launcher 3 | . 3 9 Naked Turns . | . . . Heaviest Build 94 | 14 94 27 Greatest Support 40 | 40 40 40 Greatest Overweight (x) 7 | . 2 7 Average Overweight (x) . | . . . Largest Inventory Capacity 25 | 8 25 15 Average Capacity 18 | 6 19 15 Most Carried 9 | 1 9 9 Average Carried 5 | . 5 8 Final Capacity 15 | 8 15 15 Final Carried 8 | 1 8 8 Class Distribution -------------------- 100% | Mutant Dominant Class ---------------- Mutant | -10/Materials Mutant | -10/Subcaves Resources | -11 -10 -10 ----------- Run | Yrd Mat Sub Matter Collected 540 | 225 275 40 Remotely . | . . . Salvage Created 395 | . 367 28 Parts 36 | . 33 3 Haulers Intercepted . | . . . Recyclers Shooed . | . . . Parts Field Recycled . | . . . Retrieved Matter . | . . . Parts Self-Destructed 6 | . . 6 Prevented . | . . . Kills | -11 -10 -10 ------- Run | Yrd Mat Sub Combat Hostiles Destroyed 16 | . 12 4 Guns 13 | . 12 1 AOE 3 | . . 3 Classes Destroyed 4 | . 3 1 Watcher 3 | . 3 . Swarmer 9 | . 6 3 Grunt 6 | . 6 . Subdweller 1 | . . 1 Best Kill Streak 4 | . 4 3 Combat Bots Only 4 | . 4 3 Max Kills in Single Turn 2 | . 2 2 Gunslinging . | . . . Exploded 2 | . . 2 Melee . | . . . Uniques/NPCs Destroyed . | . . . Combat | -11 -10 -10 -------- Run | Yrd Mat Sub Hostile Shots Fired 108 | . 75 33 Missed 30 | . 22 8 Damage Taken 1084 | . 508 576 Core 261 | . 85 176 Absorbed by Shields . | . . . Regen/Repaired (Parts) 112 | . 112 . Core Remaining (%) 100 | 100 . . Volleys Fired 69 | . 51 18 Largest 2 | . 2 1 Hottest 70 | . 70 30 Shots Fired 112 | . 94 18 Gun 106 | . 94 12 Cannon . | . . . Launcher 6 | . . 6 Special . | . . . Kinetic 74 | . 62 12 Thermal 32 | . 32 . Explosive 6 | . . 6 Electromagnetic . | . . . Robot Hit Streak 12 | . 12 10 Robot Miss Streak 4 | . 4 1 Penetration Max . | . . . Secondary Targets 2 | . 2 . Max Gunslinging Chain 1 | . 1 . Shots Hit Robots 68 | . 53 15 Core Hits 31 | . 24 7 Critical Kills . | . . . Critical Parts Destroyed . | . . . Critical Strikes 1 | . 1 . Burn 1 | . 1 . Melee Attacks . | . . . Impact . | . . . Slashing . | . . . Piercing . | . . . Sneak Attacks . | . . . Combat Hostiles . | . . . Follow-up Attacks . | . . . Damage Inflicted 1013 | . 618 395 Guns 705 | . 615 90 Cannons . | . . . Explosions 297 | . . 297 Melee . | . . . Ramming 11 | . 3 8 Kinetic 481 | . 391 90 Thermal 224 | . 224 . Explosive 297 | . . 297 Electromagnetic . | . . . Impact . | . . . Slashing . | . . . Piercing . | . . . Highest Corruption . | . . . Average Corruption . | . . . Corruption Purged . | . . . Corruption Blocked . | . . . Overload Shots . | . . . Overflow Damage 7 | . . 7 Projectiles . | . . . Explosions 7 | . . 7 Melee . | . . . Knockbacks 2 | . . 2 Impact 2 | . . 2 Kinetic . | . . . Secondary . | . . . Self-Inflicted Damage 20 | . . 20 Shots 1 | . . 1 Rammed 8 | . 1 7 Targets Rammed 8 | . 1 7 Kicked . | . . . Crushed . | . . . Highest Temperature 219 | . 175 219 Average Temperature 75 | . 73 109 Received Heat Transfer 466 | . 144 322 Siege Activations . | . . . Robots Corrupted . | . . . Combat Hostiles . | . . . Parts Fried . | . . . Impact Corruptions . | . . . Robots Melted . | . . . Combat Hostiles . | . . . Parts Melted 1 | . 1 . Heat Transferred 740 | . 740 . Parts Sabotaged . | . . . Parts Stolen . | . . . Parts Stripped . | . . . Power Chain Reactions . | . . . Alert | -11 -10 -10 ------- Run | Yrd Mat Sub Peak Influence 160 | . 160 . Initial . | . . . Average 13 | . 13 . Maximum Alert Level . | . . . Low Security (%) 100 | 100 100 . Level 1 . | . . . Level 2 . | . . . Level 3 . | . . . Level 4 . | . . . Level 5 . | . . . High Security . | . . . Max Security . | . . . Squads Dispatched 2 | . 2 . Investigation 1 | . 1 . Extermination . | . . . Reinforcement 1 | . 1 . Assault . | . . . Garrison . | . . . Intercept . | . . . Searches Triggered . | . . . Construction Impeded . | . . . Haulers Reinforced . | . . . Active Scanning Responses . | . . . Cargo Convoy Interrupts . | . . . Stealth | -11 -10 -10 --------- Run | Yrd Mat Sub Distress Signals 2 | . 2 . Communications Jammed . | . . . Distress Signals . | . . . Times Spotted 33 | . 26 7 Peak Tracking Total 6 | . 6 4 Tactical Retreats 1 | . . 1 Traps | -11 -10 -10 ------- Run | Yrd Mat Sub Traps Triggered 1 | . 1 . Indirectly . | . . . Trap Hack Attempts . | . . . Triggered . | . . . Disarmed . | . . . Reprogrammed . | . . . Reused . | . . . Traps Extracted . | . . . Installed . | . . . Triggered 1 | . . 1 Machines | -11 -10 -10 ---------- Run | Yrd Mat Sub Machines Disabled . | . . . Max in Single Turn . | . . . Machines Repaired . | . . . Machines Dismantled . | . . . Machines Sabotaged . | . . . Overloaded Fab Kills . | . . . Hacking | -11 -10 -10 --------- Run | Yrd Mat Sub Machines Accessed 8 | . 8 . Terminals 7 | . 7 . Fabricators . | . . . Repair Stations 1 | . 1 . Recycling Units . | . . . Scanalyzers . | . . . Garrison Access . | . . . Total Hacks 22 | . 22 . Successful 12 | . 12 . Failed 10 | . 10 . Catastrophic 1 | . 1 . Database Lockouts . | . . . Manual 14 | . 14 . Terminals 18 | . 18 . Fabricators . | . . . Repair Stations 4 | . 4 . Recycling Units . | . . . Scanalyzers . | . . . Garrison Access . | . . . Terminal Hacks 4 | . 4 . Record 2 | . 2 . Prototype ID Bank 1 | . 1 . Unreport Threat 1 | . 1 . Fabricator Hacks . | . . . Repair Station Hacks 4 | . 4 . Scan Component 2 | . 2 . Repair 2 | . 2 . Recycling Unit Hacks . | . . . Scanalyzer . | . . . Garrison Access Hacks . | . . . Unauthorized Hacks 4 | . 4 . Terminals 4 | . 4 . Botnet 4 | . 4 . Fabricators . | . . . Repair Stations . | . . . Recycling Units . | . . . Scanalyzers . | . . . Garrison Access . | . . . Data Cores Recovered . | . . . Used . | . . . Hacking Detections 7 | . 7 . Full Trace Events . | . . . Feedback Events . | . . . Feedback Blocked . | . . . Robot Schematics Acquired . | . . . Robots Built . | . . . Authchips . | . . . Time . | . . . Total Robot Build Rating . | . . . Part Schematics Acquired . | . . . Parts Built . | . . . Authchips . | . . . Time . | . . . Total Part Build Rating . | . . . Parts Repaired 2 | . 2 . Time 52 | . 52 . Parts Recycled . | . . . Recycled Matter . | . . . Retrieved Matter . | . . . Retrieved Components . | . . . Parts Scanalyzed . | . . . Part Schematics Acquired . | . . . Parts Damaged . | . . . Bothacking | -11 -10 -10 ------------ Run | Yrd Mat Sub Used RIF Installer . | . . . Robots Hacked . | . . . Non-combat . | . . . Combat . | . . . Robot Hacks Applied . | . . . Relay Couplers Released . | . . . Fabnet Peak Effective % . | . . . Robots Rewired . | . . . Allies Hacked . | . . . Hacks Repelled . | . . . Allies | -11 -10 -10 -------- Run | Yrd Mat Sub Total Allies . | . . . Largest Group . | . . . Highest-Rated Group . | . . . Highest-Rated Ally . | . . . Total Orders . | . . . Ally Attacks . | . . . Total Damage . | . . . Kills . | . . . Allies Corrupted . | . . . Allies Melted . | . . . Intel | -11 -10 -10 ------- Run | Yrd Mat Sub Robot Analysis Total . | . . . Derelict Logs Recovered . | . . . Drone Launches . | . . . Drone Recoveries . | . . . Exploration | -11 -10 -10 ------------- Run | Yrd Mat Sub Turns Passed 2616 | 96 2296 224 Spaces Moved 948 | 58 802 88 Core 17 | 5 . 12 Treads 931 | 53 802 76 Legs . | . . . Wheels . | . . . Hover . | . . . Flight . | . . . Fastest Speed 50 | 50 160 160 Average Speed 229 | 150 239 191 Slowest Speed 400 | 160 320 400 Overloaded Moves . | . . . Propulsion Burnouts . | . . . Robots Hopped . | . . . Cave-ins Triggered . | . . . Exploration Rate (%) 31 | 3 84 7 Regions Visited 2 Branch Regions 1 Pre-discovered Areas . | . . . Known Exits Taken . | . . . Unknown Exits Taken 2 | 1 1 . Scrap Searched . | . . . Spaces Dug . | . . . Terrain Destroyed 31 | . . 31 Melee . | . . . Projectile . | . . . AOE 31 | . . 31 Terrain Rammed . | . . . Walls Destroyed . | . . . Machines Disabled . | . . . Actions | -11 -10 -10 --------- Run | Yrd Mat Sub Total 1271 | 64 1085 122 Wait 209 | . 205 4 Move 946 | 57 801 88 Hop . | . . . Pick Up 11 | 1 10 . Fast Attach 13 | 6 7 . Attach 2 | . 1 1 Detach 3 | . 2 1 Swap 6 | . 3 3 Drop 4 | . 4 . Fire 69 | . 51 18 Melee . | . . . Ram . | . . . Kick . | . . . Crush 8 | . 1 7 Escape Stasis . | . . . Rewire . | . . . Trap . | . . . Miscellaneous . | . . . Route ------- -11/Scrapyard -10/Materials (discovered 4 exits: [*Mat x2] / [*Min] / [*Sub]) -10/Subcaves History --------- Turn | Location | Event 5 | -11/Scrapyard | Discovered new exit (range 15) 97 | -11/Scrapyard | Entered Materials 307 | -10/Materials | Build established: Mutant 1045 | -10/Materials | Discovered new exit (range 11) 1224 | -10/Materials | Discovered new exit (range 18) 1386 | -10/Materials | Discovered new exit (range 7) 1864 | -10/Materials | Repaired Lgt. Treads 1891 | -10/Materials | Repaired Lgt. Ion Engine 1989 | -10/Materials | Discovered new exit (range 18) 2393 | -10/Materials | Entered Subcaves 2404 | -10/Subcaves | A swath of the cavern ceiling suddenly collapsed 2547 | -10/Subcaves | Core integrity fell below 50% 2599 | -10/Subcaves | Lost 3 parts (2n1w) 2604 | -10/Subcaves | Core integrity fell below 20% 2617 | -10/Subcaves | Destroyed by RK-Q0R(R) with Subdweller Beam Cannon Last Messages --------------- 02555_ QC-7X1(R) knocked back. 02556_ Lgt. Treads destroyed. 02556_ Slammed into QC-7X1(R). 02561_ QC-7X1(R) knocked back. 02562_ Subatomizers dissect the Sub. Beam Cannon. 02563_ Slammed into QC-7X1(R). 02568_ Critical hit (Destroy). 02568_ Lgt. Treads destroyed. 02571_ QC-7X1(R) destroyed. 02573_ Subatomizers dissect the Sub. Beam Cannon. 02573_ Acquired 10 matter. 02574_ The unstable cave ceiling collapses. 02585_ Acquired 30 matter. 02601_ Subatomizers dissect the Sub. Beam Cannon. 02601_ Critical hit (Meltdown: +250). 02605_ Lgt. Assault Rifle destroyed. 02607_ Lgt. Ion Engine destroyed. Map ----- +----------------------------------------------------+ | | | | | ?????????????????????????????????????????????????? | | ?????????????????????????????????????????????????? | | ?????????????????????????????????????????????????? | | ?????????????????????????????????????????????????? | | ?????????????????????????????????????????????????? | | ?????????????????????????????????????????????????? | | ?????????????????????????????????????????????????? | | ?????????????????????????????????????????????????? | | ?????????????????????????????????????????????????? | | ?????????????????????????????????????????????????? | | ?????????????????????????????????????????????????? | | ?????????????????????????????????????????????????? | | ?????????????????????????????????????????????????? | | ?????????????????????????????????????????????????? | | ???????????????????###??###??????????????????????? | | ???????????????????# ### #??????????????????????? | | ?????????????##????? ####???????????????????? | | ????????????? ???#?? "#"#???????????????????? | | ????????????## ???# "" """????????????????????? | | ???????????##" ???? "" ""?????????????????????? | | ???????????# ????# "" " ??????????????????????? | | ???????????# "????? "" #??????????????????????? | | ????????????# "#?#####"]##?????????????????????? | | ????????????#" "## # @ #?????????????????????? | | ?????????????# "" " #?????????????????????? | | ?????????????# R"##?????????????????????? | | ?????????????# % # ! " #?????????????????????? | | ?????????????# ##?????????????????????? | | ?????????????# #?????????????????????? | | ?????????????## ## #?????????????????????? | | ?????????????# ###?????????????????????? | | ?????????????## #??????????????????????? | | ????? ????????#### #??????????????????????? | | ????? ????????#### #??????????????????????? | | ???? ????????# ####??????????????????????? | | #?## ????????# ## ##?????????????????????????? | | ? #????????## ### ##?????????????????????????? | | ? #?????????##?# #?????????????????????????? | | ? ??????##????# #?????????????????????????? | | ?? # ?????? ###??# ##?????????????????????????? | | ??# #????? #??# ##?????????????????????????? | | ??? ????? ##?# #?????????????????????????? | | #### #??### ### ##?????????????????????????? | | ##?# ##### ##??????????????????????????? | | ### #"" #"##???????????????????????????? | | ?# # ######"#??#" #???????????????????????????? | | ?# #"""""###?# #???????????????????????????? | | #""##"""### #???????????????????????????? | +----------------------------------------------------+ Best States ------------- Heat Dissipation 25 Energy Generation 10 Energy Capacity 250 Matter Stores 300 Matter Capacity 300 Sight Range 18 Terrain Scan Density 10 Evasion (%) 40 Recoil Reduction 2 Item Schematics ----------------- None Robot Schematics ------------------ None Fabricated ------------ Nothing Alien Tech Used ----------------- None Achievements -------------- None Challenges ------------ None Game ------ Seed SniperCentriumScrap Manual? 0 Play Time 00:17:19 Cumulative 6.0 hours Start 2024.04.08 @ 17:17:31 End 2024.04.08 @ 19:01:17 Sessions 2 Manual Loads 0 Difficulty Rogue Special Mode None Game No. 15 Rogue 13 Adventurer 0 Explorer 2 Win Type - Total 0 Types 0/0/0/0/0/0/0/0/0 Lore% 3 Gallery% 9 Achievement% 12 Wizard Run 0 Options --------- Layout 1 ASCII 0 Keyboard 1 Movement Vi Keybinds 0 Fullscreen 1 Font 32/SmallcapsGlow Map View 50x35 Zoom Use 0% Tactical HUD 1 Map Filters NONE Filters NONE Steam 1 RUN: f1016e3c-8626-4006-b08c-637d23278c9c